[Event "Titled Tuesday Blitz May 03 Late 2022"]
[White "Fiorito, Fabian"]
[Black "Papasimakopoulos, Alexandros"]
[WhiteFideId "100200"]
[BlackFideId "4244125"]
[WhiteElo "2395"]
[BlackElo "2340"]
[Result "0-1"]
[Round "02"]
[TimeControl "180+1"]
[Date "2022.05.03"]
[WhiteClock "0:00:11"]
[BlackClock "0:00:18"]

1. e4 {[%clk 0:03:00]}  e6 {[%clk 0:02:59]} 2. d4 {[%clk 0:03:00]}  d5 {[%clk 0:03:00]} 3. Nd2 {[%clk 0:03:00]}  Nf6 {[%clk 0:02:58]} 4. e5 {[%clk 0:03:00]}  Nfd7 {[%clk 0:02:59]} 5. Bd3 {[%clk 0:03:00]}  c5 {[%clk 0:03:00]} 6. c3 {[%clk 0:03:01]}  Nc6 {[%clk 0:03:01]} 7. Ngf3 {[%clk 0:03:01]}  a5 {[%clk 0:03:00]} 8. O-O {[%clk 0:02:57]}  cxd4 {[%clk 0:03:00]} 9. cxd4 {[%clk 0:02:57]}  Be7 {[%clk 0:03:01]} 10. Re1 {[%clk 0:02:49]}  g5 {[%clk 0:03:01]} 11. Rf1 {[%clk 0:02:20]}  g4 {[%clk 0:03:00]} 12. Ne1 {[%clk 0:02:20]}  h5 {[%clk 0:03:00]} 13. Nc2 {[%clk 0:02:20]}  Qb6 {[%clk 0:03:00]} 14. Re1 {[%clk 0:02:12]}  Nxd4 {[%clk 0:02:59]} 15. Nxd4 {[%clk 0:02:12]}  Qxd4 {[%clk 0:03:00]} 16. Nb3 {[%clk 0:02:13]}  Qb4 {[%clk 0:02:53]} 17. Bd2 {[%clk 0:02:07]}  Qb6 {[%clk 0:02:52]} 18. Be3 {[%clk 0:02:08]}  Qd8 {[%clk 0:02:53]} 19. Bb5 {[%clk 0:02:01]}  a4 {[%clk 0:02:51]} 20. Nd4 {[%clk 0:02:01]}  Qa5 {[%clk 0:02:51]} 21. Rc1 {[%clk 0:01:59]}  Kd8 {[%clk 0:02:37]} 22. Bd2 {[%clk 0:01:43]}  Bb4 {[%clk 0:02:36]} 23. Bg5+ {[%clk 0:01:42]}  Be7 {[%clk 0:02:36]} 24. Bxe7+ {[%clk 0:01:39]}  Kxe7 {[%clk 0:02:37]} 25. Qe2 {[%clk 0:01:35]}  Qb6 {[%clk 0:02:23]} 26. Qe3 {[%clk 0:01:34]}  Rg8 {[%clk 0:02:21]} 27. Qa3+ {[%clk 0:01:19]}  Kd8 {[%clk 0:02:16]} 28. Qc3 {[%clk 0:01:12]}  a3 {[%clk 0:02:06]} 29. b3 {[%clk 0:01:09]}  Qa5 {[%clk 0:02:02]} 30. b4 {[%clk 0:01:08]}  Qb6 {[%clk 0:02:02]} 31. Rc2 {[%clk 0:00:59]}  Ke7 {[%clk 0:01:49]} 32. Qe3 {[%clk 0:00:57]}  Rg6 {[%clk 0:01:27]} 33. Rec1 {[%clk 0:00:55]}  Kd8 {[%clk 0:01:20]} 34. Bxd7 {[%clk 0:00:41]}  Kxd7 {[%clk 0:01:20]} 35. Rc7+ {[%clk 0:00:31]}  Ke8 {[%clk 0:00:42]} 36. Rxc8+ {[%clk 0:00:30]}  Rxc8 {[%clk 0:00:43]} 37. Rxc8+ {[%clk 0:00:29]}  Kd7 {[%clk 0:00:44]} 38. Rc5 {[%clk 0:00:29]}  Qxb4 {[%clk 0:00:42]} 39. Rb5 {[%clk 0:00:21]}  Qc4 {[%clk 0:00:43]} 40. g3 {[%clk 0:00:20]}  Rg8 {[%clk 0:00:40]} 41. Rxb7+ {[%clk 0:00:19]}  Kc8 {[%clk 0:00:39]} 42. Ra7 {[%clk 0:00:17]}  Kb8 {[%clk 0:00:36]} 43. Qxa3 {[%clk 0:00:15]}  Qxd4 {[%clk 0:00:26]} 44. Ra8+ {[%clk 0:00:16]}  Kc7 {[%clk 0:00:27]} 45. Qa6 {[%clk 0:00:16]}  Qd1+ {[%clk 0:00:25]} 46. Kg2 {[%clk 0:00:16]}  Qf3+ {[%clk 0:00:25]} 47. Kg1 {[%clk 0:00:15]}  Qd1+ {[%clk 0:00:22]} 48. Kg2 {[%clk 0:00:15]}  Rxa8 {[%clk 0:00:22]} 49. Qxa8 {[%clk 0:00:15]}  Qf3+ {[%clk 0:00:22]} 50. Kg1 {[%clk 0:00:15]}  Kb6 {[%clk 0:00:18]} 51. Qb8+ {[%clk 0:00:15]}  Kc5 {[%clk 0:00:18]} 52. Qc7+ {[%clk 0:00:12]}  Kd4 {[%clk 0:00:19]} 53. a4 {[%clk 0:00:11]}  Qd1+ {[%clk 0:00:19]} 54. Kg2 {[%clk 0:00:11]}  Qxa4 {[%clk 0:00:20]} 55. Qxf7 {[%clk 0:00:11]}  Qc6 {[%clk 0:00:20]} 56. Qxh5 {[%clk 0:00:12]}  Kc3 {[%clk 0:00:18]} 57. Qxg4 {[%clk 0:00:12]}  d4+ {[%clk 0:00:19]} 58. Kh3 {[%clk 0:00:12]}  d3 {[%clk 0:00:19]} 59. Qf3 {[%clk 0:00:11]}  Qxf3 {[%clk 0:00:18]} 0-1


[Site "https://www.chess.com"]

[Event "Titled Tuesday Blitz May 03 Late 2022"]
[White "Fishbein, Alexander"]
[Black "Keymer, Vincent"]
[WhiteFideId "2000377"]
[BlackFideId "12940690"]
[WhiteElo "2442"]
[BlackElo "2557"]
[Result "1-0"]
[Round "02"]
[TimeControl "180+1"]
[Date "2022.05.03"]
[WhiteClock "0:00:08"]
[BlackClock "0:00:12"]

1. e4 {[%clk 0:03:00]}  c6 {[%clk 0:02:59]} 2. d4 {[%clk 0:02:58]}  d5 {[%clk 0:03:00]} 3. Nc3 {[%clk 0:02:58]}  dxe4 {[%clk 0:03:00]} 4. Nxe4 {[%clk 0:02:58]}  Nf6 {[%clk 0:03:01]} 5. Qd3 {[%clk 0:02:58]}  Nbd7 {[%clk 0:02:53]} 6. Nf3 {[%clk 0:02:57]}  Nxe4 {[%clk 0:02:53]} 7. Qxe4 {[%clk 0:02:58]}  Nf6 {[%clk 0:02:54]} 8. Qd3 {[%clk 0:02:58]}  g6 {[%clk 0:02:53]} 9. Be2 {[%clk 0:02:56]}  Bg7 {[%clk 0:02:53]} 10. O-O {[%clk 0:02:55]}  O-O {[%clk 0:02:53]} 11. Qb3 {[%clk 0:02:47]}  a5 {[%clk 0:02:48]} 12. a4 {[%clk 0:02:45]}  Be6 {[%clk 0:02:29]} 13. Bc4 {[%clk 0:02:31]}  Bxc4 {[%clk 0:02:26]} 14. Qxc4 {[%clk 0:02:31]}  Nd5 {[%clk 0:02:20]} 15. Qb3 {[%clk 0:02:29]}  Qb6 {[%clk 0:02:15]} 16. Qd3 {[%clk 0:02:28]}  h6 {[%clk 0:02:09]} 17. h4 {[%clk 0:02:26]}  Rad8 {[%clk 0:01:57]} 18. c3 {[%clk 0:01:58]}  c5 {[%clk 0:01:45]} 19. dxc5 {[%clk 0:01:29]}  Qxc5 {[%clk 0:01:46]} 20. Qb5 {[%clk 0:01:26]}  Qc7 {[%clk 0:01:33]} 21. h5 {[%clk 0:01:23]}  g5 {[%clk 0:01:31]} 22. Re1 {[%clk 0:01:14]}  Rd6 {[%clk 0:01:23]} 23. Bd2 {[%clk 0:00:57]}  Rc8 {[%clk 0:00:43]} 24. Rac1 {[%clk 0:00:51]}  Nb6 {[%clk 0:00:31]} 25. Qxa5 {[%clk 0:00:38]}  Nc4 {[%clk 0:00:30]} 26. Qxc7 {[%clk 0:00:35]}  Rxc7 {[%clk 0:00:31]} 27. Rc2 {[%clk 0:00:31]}  g4 {[%clk 0:00:24]} 28. Nd4 {[%clk 0:00:28]}  e5 {[%clk 0:00:24]} 29. Nb5 {[%clk 0:00:27]}  Rcd7 {[%clk 0:00:19]} 30. Nxd6 {[%clk 0:00:26]}  Rxd6 {[%clk 0:00:19]} 31. Bc1 {[%clk 0:00:26]}  f5 {[%clk 0:00:20]} 32. b3 {[%clk 0:00:26]}  Na5 {[%clk 0:00:20]} 33. c4 {[%clk 0:00:18]}  Nxb3 {[%clk 0:00:18]} 34. c5 {[%clk 0:00:18]}  Rc6 {[%clk 0:00:18]} 35. Bb2 {[%clk 0:00:17]}  e4 {[%clk 0:00:13]} 36. Bxg7 {[%clk 0:00:16]}  Kxg7 {[%clk 0:00:14]} 37. Rd1 {[%clk 0:00:16]}  Nxc5 {[%clk 0:00:12]} 38. Rd5 {[%clk 0:00:16]}  Nxa4 {[%clk 0:00:11]} 39. Rxc6 {[%clk 0:00:15]}  bxc6 {[%clk 0:00:11]} 40. Rxf5 {[%clk 0:00:15]}  Nc3 {[%clk 0:00:12]} 41. Rc5 {[%clk 0:00:15]}  Ne2+ {[%clk 0:00:12]} 42. Kf1 {[%clk 0:00:15]}  Nd4 {[%clk 0:00:13]} 43. Rc4 {[%clk 0:00:14]}  Nf5 {[%clk 0:00:11]} 44. Rxe4 {[%clk 0:00:14]}  g3 {[%clk 0:00:11]} 45. Rc4 {[%clk 0:00:12]}  gxf2 {[%clk 0:00:11]} 46. Kxf2 {[%clk 0:00:12]}  Ne7 {[%clk 0:00:12]} 47. Rc5 {[%clk 0:00:12]}  Kf7 {[%clk 0:00:12]} 48. Kf3 {[%clk 0:00:12]}  Ke6 {[%clk 0:00:12]} 49. g4 {[%clk 0:00:12]}  Kd6 {[%clk 0:00:13]} 50. Rc1 {[%clk 0:00:11]}  Ke6 {[%clk 0:00:14]} 51. Ke4 {[%clk 0:00:11]}  Kf6 {[%clk 0:00:13]} 52. Rd1 {[%clk 0:00:10]}  Kg5 {[%clk 0:00:12]} 53. Rd7 {[%clk 0:00:09]}  Kf6 {[%clk 0:00:08]} 54. Rd6+ {[%clk 0:00:09]}  Kg5 {[%clk 0:00:08]} 55. Kf3 {[%clk 0:00:09]}  c5 {[%clk 0:00:04]} 56. Re6 {[%clk 0:00:08]}  Nd5 {[%clk 0:00:04]} 57. Re5+ {[%clk 0:00:09]}  Kh4 {[%clk 0:00:04]} 58. Rxd5 {[%clk 0:00:09]}  c4 {[%clk 0:00:04]} 59. Rd4 {[%clk 0:00:09]}  c3 {[%clk 0:00:05]} 60. Rc4 {[%clk 0:00:09]}  Kh3 {[%clk 0:00:06]} 61. Rxc3 {[%clk 0:00:09]}  Kh2 {[%clk 0:00:07]} 62. g5 {[%clk 0:00:09]}  hxg5 {[%clk 0:00:07]} 63. h6 {[%clk 0:00:09]}  g4+ {[%clk 0:00:08]} 64. Kxg4 {[%clk 0:00:09]}  Kg2 {[%clk 0:00:09]} 65. h7 {[%clk 0:00:09]}  Kg1 {[%clk 0:00:10]} 66. h8=Q {[%clk 0:00:09]}  Kg2 {[%clk 0:00:10]} 67. Qh3+ {[%clk 0:00:09]}  Kg1 {[%clk 0:00:11]} 68. Rc1+ {[%clk 0:00:08]}  Kf2 {[%clk 0:00:12]} 69. Rc2+ {[%clk 0:00:08]}  Ke1 {[%clk 0:00:12]} 70. Qh1# {[%clk 0:00:08]} 1-0


[Site "https://www.chess.com"]

[Event "Titled Tuesday Blitz May 03 Late 2022"]
[White "Gascon Del Nogal, Jose Rafael"]
[Black "Sarkar, Justin"]
[WhiteFideId "3902463"]
[BlackFideId "2010011"]
[WhiteElo "2473"]
[BlackElo "2038"]
[Result "0-1"]
[Round "02"]
[TimeControl "180+1"]
[Date "2022.05.03"]
[WhiteClock "0:00:01"]
[BlackClock "0:00:03"]

1. c4 {[%clk 0:03:00]}  f5 {[%clk 0:02:46]} 2. g3 {[%clk 0:02:58]}  Nf6 {[%clk 0:02:44]} 3. Bg2 {[%clk 0:02:58]}  e6 {[%clk 0:02:42]} 4. Nf3 {[%clk 0:02:51]}  Be7 {[%clk 0:02:39]} 5. O-O {[%clk 0:02:51]}  O-O {[%clk 0:02:37]} 6. d3 {[%clk 0:02:48]}  c5 {[%clk 0:02:30]} 7. Nc3 {[%clk 0:02:45]}  Nc6 {[%clk 0:02:27]} 8. e4 {[%clk 0:02:44]}  b6 {[%clk 0:02:11]} 9. exf5 {[%clk 0:02:44]}  exf5 {[%clk 0:02:09]} 10. Re1 {[%clk 0:02:33]}  Bb7 {[%clk 0:02:06]} 11. Bf4 {[%clk 0:02:14]}  d6 {[%clk 0:01:32]} 12. Ng5 {[%clk 0:02:08]}  Qd7 {[%clk 0:01:28]} 13. Nd5 {[%clk 0:02:00]}  Rae8 {[%clk 0:00:31]} 14. Nxf6+ {[%clk 0:01:56]}  Bxf6 {[%clk 0:00:26]} 15. Bd5+ {[%clk 0:01:53]}  Kh8 {[%clk 0:00:23]} 16. Be6 {[%clk 0:01:09]}  Qc7 {[%clk 0:00:03]} 17. Nxh7 {[%clk 0:01:08]}  Rxe6 {[%clk 0:00:02]} 18. Qh5 {[%clk 0:00:54]}  Rxe1+ {[%clk 0:00:02]} 19. Rxe1 {[%clk 0:00:54]}  g6 {[%clk 0:00:02]} 20. Qh3 {[%clk 0:00:54]}  Qxh7 {[%clk 0:00:02]} 21. Bh6 {[%clk 0:00:28]}  Nd4 {[%clk 0:00:02]} 22. Kf1 {[%clk 0:00:24]}  Nf3 {[%clk 0:00:02]} 23. Re2 {[%clk 0:00:22]}  Bg5 {[%clk 0:00:02]} 24. Qg2 {[%clk 0:00:02]}  Qxh6 {[%clk 0:00:02]} 25. h4 {[%clk 0:00:02]}  Nd2+ {[%clk 0:00:03]} 26. Rxd2 {[%clk 0:00:01]}  Bxg2+ {[%clk 0:00:03]} 0-1


[Site "https://www.chess.com"]

[Event "Titled Tuesday Blitz May 03 Late 2022"]
[White "Gombocz, Ferenc Jr."]
[Black "Vovk, Orest"]
[WhiteFideId "775029"]
[BlackFideId "14113490"]
[WhiteElo "1913"]
[BlackElo "2203"]
[Result "0-1"]
[Round "02"]
[TimeControl "180+1"]
[Date "2022.05.03"]
[WhiteClock "0:00:35"]
[BlackClock "0:01:51"]

1. c4 {[%clk 0:03:00]}  Nc6 {[%clk 0:03:00]} 2. g3 {[%clk 0:02:58]}  d5 {[%clk 0:03:00]} 3. cxd5 {[%clk 0:02:56]}  Qxd5 {[%clk 0:03:00]} 4. Nf3 {[%clk 0:02:57]}  Bg4 {[%clk 0:02:59]} 5. Nc3 {[%clk 0:02:56]}  Qh5 {[%clk 0:02:59]} 6. Bg2 {[%clk 0:02:53]}  Bh3 {[%clk 0:02:57]} 7. O-O {[%clk 0:02:52]}  Nf6 {[%clk 0:02:55]} 8. d4 {[%clk 0:02:44]}  Ng4 {[%clk 0:02:55]} 9. Bf4 {[%clk 0:02:26]}  O-O-O {[%clk 0:02:53]} 10. d5 {[%clk 0:02:23]}  e5 {[%clk 0:02:50]} 11. Be3 {[%clk 0:02:04]}  Nxe3 {[%clk 0:02:48]} 12. fxe3 {[%clk 0:02:03]}  Bxg2 {[%clk 0:02:48]} 13. Kxg2 {[%clk 0:02:03]}  e4 {[%clk 0:02:46]} 14. Nxe4 {[%clk 0:01:57]}  Rxd5 {[%clk 0:02:43]} 15. Qb3 {[%clk 0:01:52]}  Be7 {[%clk 0:02:38]} 16. Rfd1 {[%clk 0:01:48]}  Rhd8 {[%clk 0:02:38]} 17. Rxd5 {[%clk 0:01:48]}  Qxd5 {[%clk 0:02:37]} 18. Qxd5 {[%clk 0:01:44]}  Rxd5 {[%clk 0:02:37]} 19. Nc3 {[%clk 0:01:44]}  Rd6 {[%clk 0:02:30]} 20. Rd1 {[%clk 0:01:43]}  Rxd1 {[%clk 0:02:29]} 21. Nxd1 {[%clk 0:01:43]}  Bf6 {[%clk 0:02:30]} 22. a3 {[%clk 0:01:38]}  a5 {[%clk 0:02:29]} 23. Kf2 {[%clk 0:01:38]}  a4 {[%clk 0:02:29]} 24. Nd2 {[%clk 0:01:33]}  Ne5 {[%clk 0:02:26]} 25. h3 {[%clk 0:01:30]}  c6 {[%clk 0:02:26]} 26. Nc3 {[%clk 0:01:26]}  b5 {[%clk 0:02:26]} 27. Nce4 {[%clk 0:01:25]}  Be7 {[%clk 0:02:26]} 28. Nc3 {[%clk 0:01:18]}  Kd7 {[%clk 0:02:25]} 29. g4 {[%clk 0:01:16]}  Ke6 {[%clk 0:02:23]} 30. Kg3 {[%clk 0:01:14]}  Bd6 {[%clk 0:02:22]} 31. Kf2 {[%clk 0:01:11]}  h6 {[%clk 0:02:18]} 32. e4 {[%clk 0:01:09]}  Bc7 {[%clk 0:02:17]} 33. e3 {[%clk 0:01:07]}  Nd3+ {[%clk 0:02:15]} 34. Ke2 {[%clk 0:01:07]}  Nxb2 {[%clk 0:02:16]} 35. Nf3 {[%clk 0:01:07]}  Nc4 {[%clk 0:02:11]} 36. Nd4+ {[%clk 0:01:06]}  Kd7 {[%clk 0:02:10]} 37. Kd3 {[%clk 0:01:03]}  Nxa3 {[%clk 0:02:09]} 38. Nf5 {[%clk 0:01:03]}  Be5 {[%clk 0:02:08]} 39. Nd4 {[%clk 0:00:55]}  Nc4 {[%clk 0:02:06]} 40. Nxa4 {[%clk 0:00:52]}  bxa4 {[%clk 0:02:01]} 41. Kxc4 {[%clk 0:00:52]}  a3 {[%clk 0:02:01]} 42. Kb3 {[%clk 0:00:52]}  c5 {[%clk 0:01:51]} 43. Nc2 {[%clk 0:00:45]}  Bb2 {[%clk 0:01:51]} 44. Ne1 {[%clk 0:00:37]}  c4+ {[%clk 0:01:50]} 45. Kxc4 {[%clk 0:00:34]}  a2 {[%clk 0:01:50]} 46. Nc2 {[%clk 0:00:35]}  a1=Q {[%clk 0:01:51]} 47. Nxa1 {[%clk 0:00:35]}  Bxa1 {[%clk 0:01:52]} 48. Kd5 {[%clk 0:00:35]}  f6 {[%clk 0:01:51]} 49. Kc4 {[%clk 0:00:35]}  Ke6 {[%clk 0:01:51]} 50. Kd3 {[%clk 0:00:35]}  Ke5 {[%clk 0:01:52]} 51. Kd2 {[%clk 0:00:35]}  Kxe4 {[%clk 0:01:52]} 52. Ke2 {[%clk 0:00:35]}  Bb2 {[%clk 0:01:51]} 53. Kf2 {[%clk 0:00:35]}  Ba3 {[%clk 0:01:52]} 54. Kg3 {[%clk 0:00:34]}  Bc5 {[%clk 0:01:53]} 55. Kh4 {[%clk 0:00:35]}  g6 {[%clk 0:01:52]} 56. Kg3 {[%clk 0:00:34]}  Bxe3 {[%clk 0:01:52]} 57. Kg2 {[%clk 0:00:35]}  Bf4 {[%clk 0:01:51]} 0-1


[Site "https://www.chess.com"]

[Event "Titled Tuesday Blitz May 03 Late 2022"]
[White "Hernandez Bermudez, Ulises Eduardo"]
[Black "Tisaj, Domen"]
[WhiteFideId "3902510"]
[BlackFideId "14628708"]
[WhiteElo "2056"]
[BlackElo "2333"]
[Result "0-1"]
[Round "02"]
[TimeControl "180+1"]
[Date "2022.05.03"]
[WhiteClock "0:01:46"]
[BlackClock "0:01:55"]

1. e4 {[%clk 0:03:00]}  c5 {[%clk 0:02:59]} 2. c3 {[%clk 0:03:00]}  Nf6 {[%clk 0:02:58]} 3. e5 {[%clk 0:02:59]}  Nd5 {[%clk 0:02:58]} 4. d4 {[%clk 0:02:59]}  cxd4 {[%clk 0:02:59]} 5. Qxd4 {[%clk 0:02:59]}  e6 {[%clk 0:02:58]} 6. Nf3 {[%clk 0:02:59]}  Nc6 {[%clk 0:02:59]} 7. Qe4 {[%clk 0:02:58]}  f5 {[%clk 0:02:58]} 8. Qe2 {[%clk 0:02:58]}  Bc5 {[%clk 0:02:57]} 9. g3 {[%clk 0:02:56]}  O-O {[%clk 0:02:54]} 10. Bg2 {[%clk 0:02:54]}  b6 {[%clk 0:02:52]} 11. O-O {[%clk 0:02:53]}  Bb7 {[%clk 0:02:52]} 12. Rd1 {[%clk 0:02:51]}  Qc7 {[%clk 0:02:34]} 13. a3 {[%clk 0:02:38]}  a5 {[%clk 0:02:33]} 14. Nbd2 {[%clk 0:02:34]}  Rae8 {[%clk 0:02:25]} 15. Nb3 {[%clk 0:02:32]}  Be7 {[%clk 0:02:21]} 16. c4 {[%clk 0:02:26]}  Ba6 {[%clk 0:02:20]} 17. Qc2 {[%clk 0:02:07]}  Na7 {[%clk 0:02:03]} 18. Nbd2 {[%clk 0:01:46]}  b5 {[%clk 0:01:55]} 0-1


[Site "https://www.chess.com"]

[Event "Titled Tuesday Blitz May 03 Late 2022"]
[White "Herrera Reyes, Jose Antonio"]
[Black "Vega Gutierrez, Sabrina"]
[WhiteFideId "2274914"]
[BlackFideId "2219026"]
[WhiteElo "2361"]
[BlackElo "2286"]
[Result "1-0"]
[Round "02"]
[TimeControl "180+1"]
[Date "2022.05.03"]
[WhiteClock "0:02:32"]
[BlackClock "0:02:15"]

1. Nf3 {[%clk 0:03:00]}  d5 {[%clk 0:02:59]} 2. g3 {[%clk 0:03:00]}  c6 {[%clk 0:02:59]} 3. Bg2 {[%clk 0:03:01]}  Bg4 {[%clk 0:02:59]} 4. O-O {[%clk 0:03:01]}  Nd7 {[%clk 0:03:00]} 5. d3 {[%clk 0:03:02]}  e6 {[%clk 0:03:00]} 6. c3 {[%clk 0:03:02]}  Bd6 {[%clk 0:03:00]} 7. Qb3 {[%clk 0:03:03]}  b5 {[%clk 0:02:53]} 8. a4 {[%clk 0:03:02]}  Nc5 {[%clk 0:02:49]} 9. Qc2 {[%clk 0:03:02]}  Nxa4 {[%clk 0:02:49]} 10. Nd4 {[%clk 0:02:57]}  Qc7 {[%clk 0:02:45]} 11. c4 {[%clk 0:02:57]}  a6 {[%clk 0:02:32]} 12. b3 {[%clk 0:02:38]}  Nc5 {[%clk 0:02:28]} 13. cxb5 {[%clk 0:02:33]}  cxb5 {[%clk 0:02:26]} 14. Nxb5 {[%clk 0:02:33]}  Qd8 {[%clk 0:02:14]} 15. Nxd6+ {[%clk 0:02:32]}  Qxd6 {[%clk 0:02:15]} 16. Ba3 {[%clk 0:02:32]} 1-0


[Site "https://www.chess.com"]

[Event "Titled Tuesday Blitz May 03 Late 2022"]
[White "Ibarra Jerez, Jose Carlos"]
[Black "Bibasa, Bob"]
[WhiteFideId "2226332"]
[BlackFideId "10000240"]
[WhiteElo "2626"]
[BlackElo "2056"]
[Result "1-0"]
[Round "02"]
[TimeControl "180+1"]
[Date "2022.05.03"]
[WhiteClock "0:02:39"]
[BlackClock "0:02:34"]

1. e4 {[%clk 0:03:00]}  c5 {[%clk 0:03:00]} 2. Nc3 {[%clk 0:03:00]}  Nc6 {[%clk 0:03:00]} 3. Bb5 {[%clk 0:03:00]}  Nd4 {[%clk 0:03:00]} 4. Nf3 {[%clk 0:03:01]}  Nxb5 {[%clk 0:02:58]} 5. Nxb5 {[%clk 0:03:01]}  Nf6 {[%clk 0:02:57]} 6. e5 {[%clk 0:03:00]}  Nd5 {[%clk 0:02:58]} 7. Ng5 {[%clk 0:03:00]}  Nc7 {[%clk 0:02:51]} 8. Qh5 {[%clk 0:02:53]}  g6 {[%clk 0:02:50]} 9. Qf3 {[%clk 0:02:52]}  f6 {[%clk 0:02:43]} 10. exf6 {[%clk 0:02:52]}  exf6 {[%clk 0:02:42]} 11. Nxc7+ {[%clk 0:02:49]}  Qxc7 {[%clk 0:02:43]} 12. Qxf6 {[%clk 0:02:50]}  Rg8 {[%clk 0:02:42]} 13. Qf7+ {[%clk 0:02:49]}  Kd8 {[%clk 0:02:42]} 14. Qxg8 {[%clk 0:02:49]}  Qe5+ {[%clk 0:02:43]} 15. Kf1 {[%clk 0:02:46]}  Qxg5 {[%clk 0:02:43]} 16. Qxf8+ {[%clk 0:02:46]}  Kc7 {[%clk 0:02:43]} 17. d4 {[%clk 0:02:42]}  Qg4 {[%clk 0:02:34]} 18. Bf4+ {[%clk 0:02:39]} 1-0


[Site "https://www.chess.com"]

[Event "Titled Tuesday Blitz May 03 Late 2022"]
[White "Jian, Alex"]
[Black "Goltsev, Dmitry"]
[WhiteFideId "30901022"]
[BlackFideId "24176710"]
[WhiteElo "2111"]
[BlackElo "2273"]
[Result "0-1"]
[Round "02"]
[TimeControl "180+1"]
[Date "2022.05.03"]
[WhiteClock "0:00:05"]
[BlackClock "0:02:20"]

1. Nf3 {[%clk 0:03:00]}  d5 {[%clk 0:02:59]} 2. b3 {[%clk 0:03:00]}  c6 {[%clk 0:03:00]} 3. Bb2 {[%clk 0:03:00]}  Nf6 {[%clk 0:03:01]} 4. e3 {[%clk 0:03:00]}  g6 {[%clk 0:03:01]} 5. Be2 {[%clk 0:02:59]}  Bg7 {[%clk 0:03:02]} 6. O-O {[%clk 0:02:59]}  O-O {[%clk 0:03:03]} 7. c4 {[%clk 0:02:59]}  Nbd7 {[%clk 0:03:03]} 8. d4 {[%clk 0:02:56]}  Re8 {[%clk 0:03:03]} 9. Nc3 {[%clk 0:02:53]}  e6 {[%clk 0:03:03]} 10. Rc1 {[%clk 0:02:52]}  Ne4 {[%clk 0:03:03]} 11. Bd3 {[%clk 0:02:48]}  f5 {[%clk 0:03:04]} 12. Ne2 {[%clk 0:02:45]}  a6 {[%clk 0:03:04]} 13. Ne1 {[%clk 0:02:29]}  b5 {[%clk 0:03:03]} 14. Nf4 {[%clk 0:02:20]}  Ndf6 {[%clk 0:02:47]} 15. c5 {[%clk 0:02:08]}  g5 {[%clk 0:02:44]} 16. Ne2 {[%clk 0:02:02]}  g4 {[%clk 0:02:39]} 17. Nf4 {[%clk 0:01:59]}  Ng5 {[%clk 0:02:36]} 18. Be2 {[%clk 0:01:48]}  Qe7 {[%clk 0:02:32]} 19. Ned3 {[%clk 0:01:43]}  Nd7 {[%clk 0:02:29]} 20. a4 {[%clk 0:01:31]}  e5 {[%clk 0:02:28]} 21. dxe5 {[%clk 0:01:28]}  Nxe5 {[%clk 0:02:29]} 22. Nxe5 {[%clk 0:01:27]}  Bxe5 {[%clk 0:02:30]} 23. Bxe5 {[%clk 0:01:26]}  Qxe5 {[%clk 0:02:31]} 24. Qd4 {[%clk 0:01:12]}  Qxd4 {[%clk 0:02:30]} 25. exd4 {[%clk 0:01:13]}  Re4 {[%clk 0:02:30]} 26. g3 {[%clk 0:00:59]}  Rxd4 {[%clk 0:02:29]} 27. Rfd1 {[%clk 0:00:33]}  Re4 {[%clk 0:02:28]} 28. Bd3 {[%clk 0:00:30]}  Re5 {[%clk 0:02:26]} 29. Kg2 {[%clk 0:00:28]}  Nf3 {[%clk 0:02:24]} 30. Be2 {[%clk 0:00:22]}  Ng5 {[%clk 0:02:24]} 31. Bd3 {[%clk 0:00:17]}  Bd7 {[%clk 0:02:24]} 32. Ra1 {[%clk 0:00:15]}  b4 {[%clk 0:02:21]} 33. Be2 {[%clk 0:00:13]}  a5 {[%clk 0:02:20]} 34. Re1 {[%clk 0:00:11]}  Rae8 {[%clk 0:02:19]} 35. Kf1 {[%clk 0:00:11]}  Bc8 {[%clk 0:02:17]} 36. Nd3 {[%clk 0:00:09]}  R5e7 {[%clk 0:02:15]} 37. Nf4 {[%clk 0:00:09]}  Kf7 {[%clk 0:02:14]} 38. Bd3 {[%clk 0:00:07]}  Rxe1+ {[%clk 0:02:14]} 39. Rxe1 {[%clk 0:00:07]}  Rxe1+ {[%clk 0:02:15]} 40. Kxe1 {[%clk 0:00:08]}  Nf3+ {[%clk 0:02:16]} 41. Kf1 {[%clk 0:00:07]}  Nxh2+ {[%clk 0:02:16]} 42. Ke2 {[%clk 0:00:08]}  Nf3 {[%clk 0:02:17]} 43. Nh5 {[%clk 0:00:04]}  Nd4+ {[%clk 0:02:17]} 44. Ke3 {[%clk 0:00:03]}  Nxb3 {[%clk 0:02:18]} 45. Kf4 {[%clk 0:00:03]}  Nxc5 {[%clk 0:02:18]} 46. Bxf5 {[%clk 0:00:04]}  Bxf5 {[%clk 0:02:19]} 47. Kxf5 {[%clk 0:00:05]}  b3 {[%clk 0:02:20]} 0-1


[Site "https://www.chess.com"]

[Event "Titled Tuesday Blitz May 03 Late 2022"]
[White "Kate1606"]
[Black "Yang, Cayden"]
[BlackFideId "30967260"]
[WhiteElo "2123"]
[BlackElo "2467"]
[Result "1-0"]
[Round "02"]
[TimeControl "180+1"]
[Date "2022.05.03"]
[WhiteClock "0:00:10"]
[BlackClock "0:00:16"]

1. e4 {[%clk 0:02:23]}  c5 {[%clk 0:02:57]} 2. a3 {[%clk 0:02:22]}  a5 {[%clk 0:02:49]} 3. Nf3 {[%clk 0:02:18]}  g6 {[%clk 0:02:44]} 4. d4 {[%clk 0:02:17]}  cxd4 {[%clk 0:02:45]} 5. Qxd4 {[%clk 0:02:17]}  Nf6 {[%clk 0:02:45]} 6. e5 {[%clk 0:02:09]}  Nc6 {[%clk 0:02:45]} 7. Qa4 {[%clk 0:02:06]}  Nd5 {[%clk 0:02:43]} 8. Qe4 {[%clk 0:02:05]}  Nc7 {[%clk 0:02:38]} 9. Nc3 {[%clk 0:01:50]}  Bg7 {[%clk 0:02:37]} 10. Bf4 {[%clk 0:01:50]}  O-O {[%clk 0:02:36]} 11. O-O-O {[%clk 0:01:49]}  Ne6 {[%clk 0:02:37]} 12. Be3 {[%clk 0:01:45]}  f5 {[%clk 0:02:24]} 13. exf6 {[%clk 0:01:40]}  Bxf6 {[%clk 0:02:22]} 14. Nd5 {[%clk 0:01:26]}  Bg7 {[%clk 0:02:20]} 15. h4 {[%clk 0:01:19]}  Nc7 {[%clk 0:01:27]} 16. Bb6 {[%clk 0:01:08]}  Nxd5 {[%clk 0:01:06]} 17. Bxd8 {[%clk 0:01:03]}  Nf6 {[%clk 0:01:06]} 18. Qe3 {[%clk 0:00:43]}  Rxd8 {[%clk 0:01:05]} 19. h5 {[%clk 0:00:43]}  Nxh5 {[%clk 0:00:52]} 20. Rxh5 {[%clk 0:00:42]}  gxh5 {[%clk 0:00:53]} 21. Bc4+ {[%clk 0:00:40]}  e6 {[%clk 0:00:51]} 22. Qg5 {[%clk 0:00:34]}  d5 {[%clk 0:00:49]} 23. Bd3 {[%clk 0:00:26]}  e5 {[%clk 0:00:34]} 24. Nxe5 {[%clk 0:00:25]}  Be6 {[%clk 0:00:26]} 25. Nxc6 {[%clk 0:00:23]}  bxc6 {[%clk 0:00:27]} 26. Qxh5 {[%clk 0:00:23]}  h6 {[%clk 0:00:26]} 27. Qg6 {[%clk 0:00:23]}  Bf7 {[%clk 0:00:26]} 28. Qh7+ {[%clk 0:00:22]}  Kf8 {[%clk 0:00:25]} 29. Qf5 {[%clk 0:00:20]}  Rab8 {[%clk 0:00:24]} 30. c3 {[%clk 0:00:19]}  Rd6 {[%clk 0:00:24]} 31. Qf4 {[%clk 0:00:18]}  Rbd8 {[%clk 0:00:23]} 32. Kc2 {[%clk 0:00:18]}  R8d7 {[%clk 0:00:21]} 33. Re1 {[%clk 0:00:18]}  Kg8 {[%clk 0:00:17]} 34. Qf5 {[%clk 0:00:15]}  Kf8 {[%clk 0:00:16]} 35. Re3 {[%clk 0:00:13]}  Re7 {[%clk 0:00:15]} 36. Rxe7 {[%clk 0:00:13]}  Kxe7 {[%clk 0:00:16]} 37. g4 {[%clk 0:00:13]}  Bf6 {[%clk 0:00:17]} 38. Qf3 {[%clk 0:00:12]}  Re6 {[%clk 0:00:17]} 39. Bf5 {[%clk 0:00:11]}  Re5 {[%clk 0:00:16]} 40. Kb3 {[%clk 0:00:10]}  Kd6 {[%clk 0:00:16]} 41. Qd3 {[%clk 0:00:10]} 1-0


[Site "https://www.chess.com"]